[Event "FIDE World School-ch G-15 2025"]
[Site "Vrnjacka Banja"]
[Date "2025.03.27"]
[Round "8.1"]
[White "Aldea, Maria-Antonia"]
[Black "Imomkuzieva, Nilufarkhon"]
[Result "1/2-1/2"]
[Annotator "NA RC"]
[ECO "A05"]
[WhiteElo "1954"]
[BlackElo "1983"]
[PlyCount "41"]
[EventDate "2025.03.19"]
[EventType "swiss"]
[EventCountry "SRB"]
[SourceTitle "playchess.com"]
[Source "ChessBase"]
[SourceQuality "1"]
[TimeControl "5400+30"]

1. Nf3 {[%emt 0:00:54]} Nf6 {[%emt 0:00:05]} 2. g3 {[%emt 0:00:05]} g6 {[%emt 0:00:05]} 3. b3 {[%emt 0:01:43]} d5 {[%emt 0:00:05]} 4. Bb2 {[%emt 0:01:11]} c5 {[%emt 0:00:03]} 5. Bg2 {[%emt 0:04:00]} Bg7 {[%emt 0:00:04]} 6. c4 {[%emt 0:05:06]} d4 {[%emt 0:00:18]} 7. b4 {[%emt 0:01:38]} O-O {[%emt 0:00:06]} 8. bxc5 {[%emt 0:09:34]} Nc6 {[%emt 0:00:04]} 9. d3 {[%emt 0:03:20]} e5 {[%emt 0:00:29]} 10. Nfd2 {[%emt 0:08:17]} Bf5 {[%emt 0:08:09]} 11. Na3 {[%emt 0:03:04]} a6 {[%emt 0:03:23]} 12. Nc2 {[%emt 0:06:47]} Re8 {[%emt 0:00:30]} 13. O-O {[%emt 0:01:47]} Qc8 {[%emt 0:02:39]} 14. Nb3 {[%emt 0:04:28]} Bh3 {[%emt 0:10:05]} 15. e3 {[%emt 0:16:33]} dxe3 {[%emt 0:00:14]} 16. fxe3 {[%emt 0:00:41]} Bxg2 {[%emt 0:00:04]} 17. Kxg2 {[%emt 0:00:04]} Qe6 {[%emt 0:00:05]} 18. Qe2 {[%emt 0:03:07]} Nd7 {[%emt 0:01:33]} 19. Rad1 {[%emt 0:03:38]} Rac8 {[%emt 0:03:52]} 20. Ba3 {[%emt 0:03:05]} Nd8 {[%emt 0:03:49]} 21. e4 {[%emt 0:04:05]} 1/2-1/2

[Event "FIDE World School-ch G-15 2025"]
[Site "Vrnjacka Banja"]
[Date "2025.03.27"]
[Round "8.2"]
[White "Aadya Gupta"]
[Black "Japparbekova, Malika"]
[Result "1-0"]
[Annotator "NA RC"]
[ECO "E81"]
[WhiteElo "1928"]
[BlackElo "1878"]
[PlyCount "99"]
[EventDate "2025.03.19"]
[EventType "swiss"]
[EventCountry "SRB"]
[SourceTitle "playchess.com"]
[Source "ChessBase"]
[SourceQuality "1"]
[TimeControl "5400+30"]

1. d4 {[%emt 0:02:16]} Nf6 {[%emt 0:00:06]} 2. c4 {[%emt 0:00:04]} g6 {[%emt 0:00:05]} 3. Nc3 {[%emt 0:00:03]} Bg7 {[%emt 0:00:05]} 4. e4 {[%emt 0:00:03]} d6 {[%emt 0:00:07]} 5. f3 {[%emt 0:00:02]} O-O {[%emt 0:01:06]} 6. Nge2 {[%emt 0:00:15]} Nbd7 {[%emt 0:00:18]} 7. Be3 {[%emt 0:00:13]} c5 {[%emt 0:01:00]} 8. Qd2 {[%emt 0:01:21]} a6 {[%emt 0:10:09]} 9. Nc1 {[%emt 0:02:15]} Nh5 {[%emt 0:12:15]} 10. Nb3 {[%emt 0:02:20]} cxd4 {[%emt 0:02:02]} 11. Nxd4 {[%emt 0:00:39]} e6 {[%emt 0:08:19]} 12. Be2 {[%emt 0:07:13]} Be5 {[%emt 0:13:24]} 13. O-O-O {[%emt 0:05:08]} Ng7 {[%emt 0:03:13]} 14. g4 {[%emt 0:03:48]} b5 {[%emt 0:09:30]} 15. cxb5 {[%emt 0:07:26]} axb5 {[%emt 0:00:07]} 16. Bxb5 {[%emt 0:02:01]} Nc5 {[%emt 0:00:44]} 17. Nc6 {[%emt 0:04:40]} Qb6 {[%emt 0:07:38]} 18. Nxe5 {[%emt 0:03:42]} dxe5 {[%emt 0:01:03]} 19. Qf2 {[%emt 0:01:59]} Nxe4 {[%emt 0:08:38]} 20. Bxb6 {[%emt 0:00:26]} Nxf2 {[%emt 0:00:08]} 21. Bxf2 {[%emt 0:00:03]} Bb7 {[%emt 0:00:08]} 22. Be2 {[%emt 0:01:19]} Rfc8 {[%emt 0:00:46]} 23. Kb1 {[%emt 0:00:12]} f5 {[%emt 0:00:23]} 24. gxf5 {[%emt 0:01:05]} exf5 {[%emt 0:00:51]} 25. Nd5 {[%emt 0:00:46]} Bxd5 {[%emt 0:03:22]} 26. Rxd5 {[%emt 0:00:01]} Re8 {[%emt 0:00:30]} 27. Bb5 {[%emt 0:00:10]} Re6 {[%emt 0:00:25]} 28. Rhd1 {[%emt 0:00:22]} h6 {[%emt 0:00:37]} 29. Rd8+ {[%emt 0:00:36]} Rxd8 {[%emt 0:00:13]} 30. Rxd8+ {[%emt 0:00:02]} Kh7 {[%emt 0:00:09]} 31. Bc4 {[%emt 0:00:16]} Re7 {[%emt 0:00:33]} 32. a4 {[%emt 0:00:34]} e4 {[%emt 0:00:14]} 33. fxe4 {[%emt 0:00:11]} fxe4 {[%emt 0:00:07]} 34. a5 {[%emt 0:00:47]} Nf5 {[%emt 0:01:00]} 35. a6 {[%emt 0:01:43]} e3 {[%emt 0:00:38]} 36. Be1 {[%emt 0:00:03]} h5 {[%emt 0:00:43]} 37. Rb8 {[%emt 0:01:56]} Nd6 {[%emt 0:02:13]} 38. Be2 {[%emt 0:00:14]} Kh6 {[%emt 0:06:02]} 39. Bb4 {[%emt 0:00:11]} Rd7 {[%emt 0:00:07]} 40. Bxd6 {[%emt 0:00:10]} Rxd6 {[%emt 0:00:08]} 41. a7 {[%emt 0:00:02]} Rd2 {[%emt 0:00:14]} 42. a8=Q {[%emt 0:00:14]} Rxe2 {[%emt 0:00:10]} 43. Rh8+ {[%emt 0:00:25]} Kg5 {[%emt 0:00:09]} 44. Qd5+ {[%emt 0:00:26]} Kg4 {[%emt 0:00:46]} 45. Qc4+ {[%emt 0:00:03]} Kf3 {[%emt 0:00:08]} 46. Rf8+ {[%emt 0:00:02]} Kg2 {[%emt 0:00:06]} 47. Qxe2+ {[%emt 0:00:03]} Kh3 {[%emt 0:00:09]} 48. Qxe3+ {[%emt 0:00:16]} Kxh2 {[%emt 0:00:09]} 49. Rf2+ {[%emt 0:00:03]} Kh1 {[%emt 0:00:22]} 50. Qe1# {[%emt 0:00:03]} 1-0

[Event "FIDE World School-ch G-15 2025"]
[Site "Vrnjacka Banja"]
[Date "2025.03.27"]
[Round "8.3"]
[White "Zarkym, Ailin"]
[Black "Assylkhan, Asiya"]
[Result "1/2-1/2"]
[Annotator "NA RC"]
[ECO "C00"]
[WhiteElo "1763"]
[BlackElo "1969"]
[PlyCount "87"]
[EventDate "2025.03.19"]
[EventType "swiss"]
[EventCountry "SRB"]
[SourceTitle "playchess.com"]
[Source "ChessBase"]
[SourceQuality "1"]
[TimeControl "5400+30"]

1. e4 {[%emt 0:00:01]} e6 {[%emt 0:00:04]} 2. d3 {[%emt 0:00:04]} d5 {[%emt 0:00:12]} 3. Nd2 {[%emt 0:00:08]} Nf6 {[%emt 0:00:09]} 4. g3 {[%emt 0:00:35]} c5 {[%emt 0:00:31]} 5. Bg2 {[%emt 0:00:14]} Nc6 {[%emt 0:00:10]} 6. Ngf3 {[%emt 0:00:43]} Be7 {[%emt 0:00:40]} 7. O-O {[%emt 0:00:53]} O-O {[%emt 0:00:21]} 8. h3 {[%emt 0:03:09]} e5 {[%emt 0:08:10]} 9. exd5 {[%emt 0:02:03]} Nxd5 {[%emt 0:00:22]} 10. Nc4 {[%emt 0:00:16]} f6 {[%emt 0:00:57]} 11. a4 {[%emt 0:00:45]} Be6 {[%emt 0:01:09]} 12. Re1 {[%emt 0:03:59]} Qd7 {[%emt 0:04:08]} 13. Kh2 {[%emt 0:00:11]} Rad8 {[%emt 0:00:22]} 14. Bd2 {[%emt 0:12:57]} Bf7 {[%emt 0:02:23]} 15. Qc1 {[%emt 0:08:27]} Rfe8 {[%emt 0:09:00]} 16. Be3 {[%emt 0:09:00]} Bf8 {[%emt 0:04:24]} 17. a5 {[%emt 0:05:19]} Qc7 {[%emt 0:05:04]} 18. Nfd2 {[%emt 0:04:44]} Ndb4 {[%emt 0:06:37]} 19. Nb3 {[%emt 0:03:44]} Nd4 {[%emt 0:03:26]} 20. Bxd4 {[%emt 0:01:21]} cxd4 {[%emt 0:00:06]} 21. Nbd2 {[%emt 0:01:15]} f5 {[%emt 0:17:53]} 22. Na3 {[%emt 0:07:57]} h5 {[%emt 0:16:12]} 23. Ndc4 {[%emt 0:04:55]} e4 {[%emt 0:01:13]} 24. Qd2 {[%emt 0:00:48]} h4 {[%emt 0:01:06]} 25. Rad1 {[%emt 0:04:30]} Bh5 {[%emt 0:02:10]} 26. Qg5 {[%emt 0:02:43]} Bxd1 {[%emt 0:00:36]} 27. Rxd1 {[%emt 0:00:01]} hxg3+ {[%emt 0:03:01]} 28. fxg3 {[%emt 0:00:01]} exd3 {[%emt 0:00:36]} 29. cxd3 {[%emt 0:01:17]} Re2 {[%emt 0:01:06]} 30. Qxf5 {[%emt 0:00:58]} Qc6 {[%emt 0:01:17]} 31. Rg1 {[%emt 0:00:05]} Qf6 {[%emt 0:00:17]} 32. Qg4 {[%emt 0:02:08]} Rde8 {[%emt 0:00:16]} 33. Nb5 {[%emt 0:00:43]} Bc5 {[%emt 0:01:45]} 34. Kh1 {[%emt 0:02:37]} Nxd3 {[%emt 0:01:32]} 35. Qh5 {[%emt 0:00:23]} Qh6 {[%emt 0:03:32]} 36. Qf5 {[%emt 0:01:27]} Nf2+ {[%emt 0:00:43]} 37. Kh2 {[%emt 0:00:00]} Rf8 {[%emt 0:01:48]} 38. Qd5+ {[%emt 0:01:13]} Kh8 {[%emt 0:00:06]} 39. h4 {[%emt 0:00:23]} Be7 {[%emt 0:01:25]} 40. Qxd4 {[%emt 0:00:57]} Qf6 {[%emt 0:00:42]} 41. Qxf6 {[%emt 0:01:23]} Rxf6 {[%emt 0:00:58]} 42. Nd4 {[%emt 0:00:23]} Ng4+ {[%emt 0:01:38]} 43. Kh3 {[%emt 0:00:07]} Nf2+ {[%emt 0:00:18]} 44. Kh2 {[%emt 0:00:05]} 1/2-1/2

[Event "FIDE World School-ch G-15 2025"]
[Site "Vrnjacka Banja"]
[Date "2025.03.27"]
[Round "8.4"]
[White "Preobrazhenskaya, Diana"]
[Black "Badica, Ariana"]
[Result "1-0"]
[Annotator "NA RC"]
[ECO "B75"]
[WhiteElo "2032"]
[BlackElo "1890"]
[PlyCount "73"]
[EventDate "2025.03.19"]
[EventType "swiss"]
[EventCountry "SRB"]
[SourceTitle "playchess.com"]
[Source "ChessBase"]
[SourceQuality "1"]
[TimeControl "5400+30"]

1. e4 {[%emt 0:00:01]} c5 {[%emt 0:00:06]} 2. Nf3 {[%emt 0:00:07]} d6 {[%emt 0:00:10]} 3. d4 {[%emt 0:00:07]} cxd4 {[%emt 0:00:06]} 4. Nxd4 {[%emt 0:00:02]} Nf6 {[%emt 0:00:11]} 5. Nc3 {[%emt 0:00:03]} g6 {[%emt 0:00:54]} 6. Be3 {[%emt 0:01:09]} Bg7 {[%emt 0:00:07]} 7. f3 {[%emt 0:00:14]} a6 {[%emt 0:00:19]} 8. Qd2 {[%emt 0:00:41]} h5 {[%emt 0:00:43]} 9. Bc4 {[%emt 0:00:20]} b5 {[%emt 0:01:56]} 10. Bb3 {[%emt 0:03:23]} Bb7 {[%emt 0:00:43]} 11. Nd5 {[%emt 0:06:37]} Nbd7 {[%emt 0:04:58]} 12. O-O-O {[%emt 0:01:42]} Ne5 {[%emt 0:17:31]} 13. Bg5 {[%emt 0:12:57]} Nxd5 {[%emt 0:06:29]} 14. exd5 {[%emt 0:00:48]} O-O {[%emt 0:02:03]} 15. Bh6 {[%emt 0:04:17]} a5 {[%emt 0:15:38]} 16. a3 {[%emt 0:05:45]} b4 {[%emt 0:02:44]} 17. a4 {[%emt 0:00:50]} Rc8 {[%emt 0:03:31]} 18. Bxg7 {[%emt 0:03:23]} Kxg7 {[%emt 0:00:05]} 19. Qg5 {[%emt 0:00:12]} Qd7 {[%emt 0:01:54]} 20. Rhe1 {[%emt 0:01:20]} Rfe8 {[%emt 0:10:19]} 21. h3 {[%emt 0:01:42]} Ba6 {[%emt 0:03:15]} 22. Kb1 {[%emt 0:03:46]} Nc4 {[%emt 0:13:11]} 23. g4 {[%emt 0:02:55]} hxg4 {[%emt 0:02:03]} 24. hxg4 {[%emt 0:02:13]} e6 {[%emt 0:05:42]} 25. Rh1 {[%emt 0:16:56]} Rh8 {[%emt 0:00:43]} 26. dxe6 {[%emt 0:01:54]} fxe6 {[%emt 0:01:05]} 27. Rxh8 {[%emt 0:00:05]} Rxh8 {[%emt 0:00:36]} 28. Re1 {[%emt 0:00:08]} Re8 {[%emt 0:06:56]} 29. Rh1 {[%emt 0:00:28]} Rg8 {[%emt 0:00:30]} 30. Rh6 {[%emt 0:04:14]} Qf7 {[%emt 0:00:31]} 31. Qh4 {[%emt 0:00:37]} Kf8 {[%emt 0:00:29]} 32. Rh7 {[%emt 0:00:07]} Nd2+ {[%emt 0:00:31]} 33. Ka2 {[%emt 0:00:10]} Qxh7 {[%emt 0:00:18]} 34. Nxe6+ {[%emt 0:00:29]} Ke8 {[%emt 0:00:29]} 35. Qxh7 {[%emt 0:00:43]} Nxb3 {[%emt 0:00:41]} 36. Qxg8+ {[%emt 0:00:22]} Ke7 {[%emt 0:01:03]} 37. cxb3 {[%emt 0:00:07]} 1-0

[Event "FIDE World School-ch G-15 2025"]
[Site "Vrnjacka Banja"]
[Date "2025.03.27"]
[Round "8.5"]
[White "Leisle, Darya"]
[Black "Ferrer Naranjo, Liennys"]
[Result "0-1"]
[Annotator "NA RC"]
[ECO "B12"]
[WhiteElo "1750"]
[BlackElo "1950"]
[PlyCount "80"]
[EventDate "2025.03.19"]
[EventType "swiss"]
[EventCountry "SRB"]
[SourceTitle "playchess.com"]
[Source "ChessBase"]
[SourceQuality "1"]
[TimeControl "5400+30"]

1. e4 {[%emt 0:00:02]} c6 {[%emt 0:00:03]} 2. d4 {[%emt 0:00:06]} d5 {[%emt 0:00:05]} 3. e5 {[%emt 0:00:05]} Bf5 {[%emt 0:00:04]} 4. Nf3 {[%emt 0:00:09]} e6 {[%emt 0:00:05]} 5. Be2 {[%emt 0:00:09]} c5 {[%emt 0:00:09]} 6. c3 {[%emt 0:00:33]} Nc6 {[%emt 0:00:23]} 7. O-O {[%emt 0:00:34]} h6 {[%emt 0:00:53]} 8. a3 {[%emt 0:17:46]} cxd4 {[%emt 0:06:35]} 9. cxd4 {[%emt 0:00:23]} Nge7 {[%emt 0:01:21]} 10. Nc3 {[%emt 0:06:45]} Nc8 {[%emt 0:04:58]} 11. Be3 {[%emt 0:07:03]} Nb6 {[%emt 0:02:53]} 12. Nd2 {[%emt 0:02:21]} Be7 {[%emt 1:19:01]} 13. f4 {[%emt 0:08:49]} g5 {[%emt 0:00:00]} 14. fxg5 {[%emt 0:07:13]} Bxg5 {[%emt 0:00:00]} 15. Bf2 {[%emt 0:02:02]} Rg8 {[%emt 0:00:00]} 16. Nf3 {[%emt 0:03:32]} a6 {[%emt 0:00:00]} 17. Kh1 {[%emt 0:07:56]} h5 {[%emt 0:00:00]} 18. Nxg5 {[%emt 0:02:50]} Qxg5 {[%emt 0:00:00]} 19. Bf3 {[%emt 0:00:43]} Nc4 {[%emt 0:00:00]} 20. Qe2 {[%emt 0:05:02]} N6a5 {[%emt 0:00:00]} 21. Rad1 {[%emt 0:20:42]} O-O-O {[%emt 0:00:00]} 22. Na4 {[%emt 0:01:46]} Nb3 {[%emt 0:00:00]} 23. Nc5 {[%emt 0:01:29]} Nbd2 {[%emt 0:00:00]} 24. Rg1 {[%emt 0:00:15]} Qf4 {[%emt 0:02:47]} 25. Nd3 {[%emt 0:02:40]} Bxd3 {[%emt 0:01:13]} 26. Qxd3 {[%emt 0:00:02]} Nxf3 {[%emt 0:00:58]} 27. gxf3 {[%emt 0:00:47]} Nxb2 {[%emt 0:00:55]} 28. Qc3+ {[%emt 0:00:29]} Nc4 {[%emt 0:00:07]} 29. Bg3 {[%emt 0:01:10]} Qe3 {[%emt 0:01:11]} 30. Rd3 {[%emt 0:00:21]} Qe2 {[%emt 0:00:27]} 31. Rg2 {[%emt 0:00:51]} Qf1+ {[%emt 0:00:26]} 32. Rg1 {[%emt 0:00:03]} Qh3 {[%emt 0:00:38]} 33. f4 {[%emt 0:00:36]} h4 {[%emt 0:00:49]} 34. Bf2 {[%emt 0:00:38]} Qf5 {[%emt 0:00:14]} 35. Rf3 {[%emt 0:01:33]} Rxg1+ {[%emt 0:00:19]} 36. Bxg1 {[%emt 0:00:12]} Rg8 {[%emt 0:00:58]} 37. Qe1 {[%emt 0:00:51]} Qg4 {[%emt 0:00:21]} 38. Rf2 {[%emt 0:00:31]} Kb8 {[%emt 0:00:34]} 39. Qf1 {[%emt 0:00:29]} Ne3 {[%emt 0:00:26]} 40. Qe1 {[%emt 0:00:24]} h3 {[%emt 0:00:19]} 0-1

[Event "FIDE World School-ch G-15 2025"]
[Site "Vrnjacka Banja"]
[Date "2025.03.27"]
[Round "8.6"]
[White "Ashotia, Barbare"]
[Black "Margad, Munkhpurev"]
[Result "1-0"]
[Annotator "NA RC"]
[ECO "C18"]
[WhiteElo "1895"]
[BlackElo "1925"]
[PlyCount "61"]
[EventDate "2025.03.19"]
[EventType "swiss"]
[EventCountry "SRB"]
[SourceTitle "playchess.com"]
[Source "ChessBase"]
[SourceQuality "1"]
[TimeControl "5400+30"]

1. e4 {[%emt 0:00:02]} e6 {[%emt 0:00:14]} 2. d4 {[%emt 0:00:17]} d5 {[%emt 0:00:07]} 3. Nc3 {[%emt 0:00:25]} Bb4 {[%emt 0:00:08]} 4. e5 {[%emt 0:00:06]} c5 {[%emt 0:00:08]} 5. a3 {[%emt 0:00:19]} Bxc3+ {[%emt 0:00:06]} 6. bxc3 {[%emt 0:00:05]} Ne7 {[%emt 0:00:20]} 7. Qg4 {[%emt 0:00:23]} O-O {[%emt 0:00:19]} 8. Bd3 {[%emt 0:01:10]} f5 {[%emt 0:00:07]} 9. exf6 {[%emt 0:01:49]} Rxf6 {[%emt 0:00:06]} 10. Bg5 {[%emt 0:01:36]} Rf7 {[%emt 0:00:39]} 11. Qh5 {[%emt 0:07:06]} g6 {[%emt 0:00:07]} 12. Qd1 {[%emt 0:00:30]} e5 {[%emt 0:00:15]} 13. dxe5 {[%emt 0:03:35]} Nbc6 {[%emt 0:00:36]} 14. f4 {[%emt 0:10:33]} c4 {[%emt 0:00:21]} 15. Be2 {[%emt 0:00:05]} Qb6 {[%emt 0:00:15]} 16. Rb1 {[%emt 0:10:14]} Qa5 {[%emt 0:02:38]} 17. Qd2 {[%emt 0:02:26]} Qxa3 {[%emt 0:04:50]} 18. Nf3 {[%emt 0:02:41]} b6 {[%emt 0:13:32]} 19. O-O {[%emt 0:04:22]} Qc5+ {[%emt 0:00:18]} 20. Nd4 {[%emt 0:00:18]} Nxd4 {[%emt 0:03:54]} 21. cxd4 {[%emt 0:01:05]} Qc7 {[%emt 0:00:23]} 22. g4 {[%emt 0:03:02]} Be6 {[%emt 0:04:14]} 23. Bf6 {[%emt 0:06:58]} Qd7 {[%emt 0:25:28]} 24. f5 {[%emt 0:03:07]} gxf5 {[%emt 0:01:50]} 25. Qg5+ {[%emt 0:00:21]} Kf8 {[%emt 0:00:29]} 26. gxf5 {[%emt 0:00:15]} Bxf5 {[%emt 0:02:07]} 27. Bxe7+ {[%emt 0:02:31]} Qxe7 {[%emt 0:01:26]} 28. Rxf5 {[%emt 0:00:17]} Qxg5+ {[%emt 0:00:15]} 29. Rxg5 {[%emt 0:00:01]} a5 {[%emt 0:03:44]} 30. Bg4 {[%emt 0:03:32]} Ke7 {[%emt 0:00:24]} 31. Rxb6 {[%emt 0:00:38]} 1-0